fUST/lending_fUST_20250108
["ID","MTS","AMOUNT","RATE_DAILY","PERIOD"]
[348083806,1736298644429,-151.0,0.00019943,2]
[348083809,1736298644438,-500.0,0.00019943,3]
[348083811,1736298644447,-500.0,0.00019943,3]
[348083813,1736298644457,-500.0,0.00019943,3]
[348083814,1736298644466,-500.0,0.00019943,3]
[348083817,1736298644475,-151.0,0.00019943,2]
[348083819,1736298644484,-500.0,0.00019943,3]
[348083821,1736298644493,-500.0,0.00019943,3]
[348083823,1736298644503,-500.0,0.00019943,3]
[348083825,1736298644512,-771.51,0.00019944,3]
[348083827,1736298644522,-500.0,0.00019944,3]
[348083829,1736298644531,-500.0,0.00019944,3]
[348083831,1736298644541,-500.0,0.00019944,3]
[348083833,1736298644550,-500.0,0.00019946,3]
[348083835,1736298644559,-175.209639,0.00019973,2]
[348083836,1736298644568,-175.209631,0.00019973,2]
[348083839,1736298644577,-267.071855,0.00019973,2]
[348083841,1736298644587,-222.74911425,0.00019997,2]
[348083842,1736298644595,-151.0,0.00019998,2]
[348083844,1736298644605,-151.0,0.00019999,2]
[348083847,1736298644614,-1959.3,0.00019999,3]
[348083848,1736298644623,-500.0,0.00019999,3]
[348083851,1736298644633,-500.0,0.00019999,3]
[348083853,1736298644642,-500.0,0.00019999,3]
[348083854,1736298644651,-500.0,0.00019999,3]
[348083856,1736298644661,-2000.0,0.0002,4]
[348083859,1736298644670,-2000.0,0.0002,2]
[348083860,1736298644679,-734.0,0.0002,4]
[348083863,1736298644689,-160.0,0.0002,2]
[348083865,1736298644698,-151.0,0.0002,2]
[348083867,1736298644708,-500.0,0.0002,3]
[348083869,1736298644717,-830.36,0.0002,2]
[348083871,1736298644726,-500.0,0.0002,3]
[348083873,1736298644735,-500.0,0.0002,3]
[348083875,1736298644744,-6369.0,0.0002,2]
[348083877,1736298644753,-500.0,0.0002,3]
[348083879,1736298644762,-500.0,0.0002,3]
[348083881,1736298644771,-500.0,0.0002,3]
[348083883,1736298644780,-500.0,0.0002,3]
[348083885,1736298644789,-500.0,0.0002,3]
[348083886,1736298644798,-500.0,0.0002,3]
[348083887,1736298644807,-500.0,0.0002,3]
[348083888,1736298644816,-500.0,0.0002,3]
[348083889,1736298644825,-500.0,0.0002,3]
[348083890,1736298644835,-500.0,0.0002,3]
[348083891,1736298644844,-500.0,0.0002,3]
[348083892,1736298644853,-500.0,0.0002,3]
[348083893,1736298644862,-500.0,0.0002,3]
[348083894,1736298644871,-500.0,0.0002,3]
[348083895,1736298644880,-500.0,0.0002,3]
[348083896,1736298644889,-500.0,0.0002,3]
[348083897,1736298644898,-500.0,0.0002,3]
[348083898,1736298644907,-516.08,0.0002,3]
[348083899,1736298644918,-500.0,0.0002,3]
[348083900,1736298644927,-500.0,0.0002,3]
[348083901,1736298644937,-500.0,0.0002,3]
[348083902,1736298644946,-500.0,0.0002,3]
[348083903,1736298644955,-500.0,0.0002,3]
[348083904,1736298644964,-500.0,0.0002,3]
[348083905,1736298644973,-218.20009552,0.0002,3]
[348083906,1736298644982,-500.0,0.0002,3]
[348083907,1736298644991,-500.0,0.0002,3]
[348083908,1736298645000,-500.0,0.0002,3]
[348083909,1736298645009,-500.0,0.0002,3]
[348083910,1736298645018,-500.0,0.0002,3]
[348083911,1736298645027,-500.0,0.0002,3]
[348083912,1736298645037,-4993.25,0.0002,3]
[348083913,1736298645047,-500.0,0.0002,3]
[348083914,1736298645055,-500.0,0.0002,3]
[348083915,1736298645065,-500.0,0.0002,3]
[348083916,1736298645074,-293.69,0.0002,3]
[348083917,1736298645084,-500.0,0.0002,3]
[348083919,1736298645097,-500.0,0.0002,3]
[348083921,1736298645106,-500.0,0.0002,3]
[348083923,1736298645115,-500.0,0.0002,3]
[348083925,1736298645124,-500.0,0.0002,3]
[348083926,1736298645135,-226.18278332,0.0002,3]
[348083927,1736298645145,-500.0,0.0002,3]
[348083929,1736298645156,-500.0,0.0002,3]
[348083938,1736298645167,-500.0,0.0002,3]
[348083940,1736298645248,-500.0,0.0002,3]
[348083942,1736298645259,-1911.48,0.0002,3]
[348083944,1736298645269,-500.0,0.0002,3]
[348083946,1736298645279,-12060.56985254,0.00020003,2]
[348083948,1736298645288,-500.0,0.00020097,2]
[348083950,1736298645298,-12060.56985254,0.00020107,2]
[348083952,1736298645307,-352.9591083,0.00020137,2]
[348083954,1736298645316,-352.9591083,0.00020137,2]
[348083956,1736298645325,-351.9357435,0.00020137,2]
[348083958,1736298645334,-151.0,0.00020176,2]
[348083960,1736298645343,-12060.56985254,0.0002021,2]
[348083962,1736298645352,-500.0,0.00020217,3]
[348083964,1736298645361,-500.0,0.00020217,3]
[348083966,1736298645370,-500.0,0.00020217,3]
[348083968,1736298645380,-446.49981723,0.00020217,3]
[348083970,1736298645389,-500.0,0.00020217,3]
[348083972,1736298645399,-500.0,0.00020217,3]
[348083974,1736298645408,-500.0,0.00020217,3]
[348083976,1736298645417,-500.0,0.00020217,3]
[348083978,1736298645426,-771.51,0.00020218,3]
[348083980,1736298645436,-500.0,0.00020218,3]
[348083982,1736298645445,-500.0,0.00020218,3]
[348083984,1736298645454,-500.0,0.00020218,3]
[348083986,1736298645463,-500.0,0.0002022,3]
[348083988,1736298645473,-171.63860476,0.00020238,2]
[348083990,1736298645482,-524.59,0.00020273,3]
[348083992,1736298645491,-500.0,0.00020273,3]
[348083994,1736298645500,-500.0,0.00020273,3]
[348083996,1736298645509,-500.0,0.00020273,3]
[348083998,1736298645518,-500.0,0.00020273,3]
[348084000,1736298645527,-372.4331669,0.00020273,3]
[348084003,1736298645537,-500.0,0.00020273,3]
[348084005,1736298645546,-500.0,0.00020273,3]
[348084007,1736298645555,-500.0,0.00020273,3]
[348084009,1736298645564,-1959.3,0.00020273,3]
[348084011,1736298645574,-500.0,0.00020273,3]
[348084013,1736298645583,-500.0,0.00020273,3]
[348084015,1736298645592,-500.0,0.00020273,3]
[348084016,1736298645602,-236.34,0.00020273,3]
[348084018,1736298645612,-500.0,0.00020273,3]
[348084020,1736298645622,-475.34046984,0.00020273,3]
[348084023,1736298645631,-500.0,0.00020273,3]
[348084025,1736298645641,-500.0,0.00020273,3]
[348084027,1736298645651,-500.0,0.00020273,3]
[348084028,1736298645660,-500.0,0.00020273,3]
[348084030,1736298645669,-500.0,0.00020273,3]
[348084032,1736298645679,-500.0,0.00020273,3]
[348084035,1736298645688,-500.0,0.00020273,3]
[348084037,1736298645698,-500.0,0.00020273,3]
[348084039,1736298645707,-500.0,0.00020273,3]
[348084040,1736298645716,-500.0,0.00020273,3]
[348084042,1736298645725,-500.0,0.00020273,3]
[348084045,1736298645735,-500.0,0.00020273,3]
[348084047,1736298645744,-500.0,0.00020273,3]
[348084049,1736298645753,-526.51,0.00020273,3]
[348084051,1736298645762,-500.0,0.00020273,3]
[348084053,1736298645771,-500.0,0.00020273,3]
[348084055,1736298645781,-500.0,0.00020273,3]
[348084057,1736298645790,-384.0717944,0.00020273,3]
[348084066,1736298645868,-4609.1782056,0.00020273,3]
[348084068,1736298645878,-511.83891448,0.00020273,3]
[348084070,1736298645888,-500.0,0.00020273,3]
[348084072,1736298645898,-500.0,0.00020273,3]
[348084074,1736298645907,-500.0,0.00020273,3]
[348084076,1736298645919,-500.0,0.00020273,3]
[348084078,1736298645928,-221.68,0.00020273,3]
[348084080,1736298645940,-500.0,0.00020273,3]
[348084083,1736298645955,-500.0,0.00020273,3]
[348084085,1736298645969,-500.0,0.00020273,3]
[348084088,1736298645983,-500.0,0.00020273,3]
[348084090,1736298645994,-500.0,0.00020273,3]
[348084093,1736298646007,-500.0,0.00020273,3]
[348084095,1736298646021,-500.0,0.00020273,3]
[348084097,1736298646035,-500.0,0.00020273,3]
[348084100,1736298646049,-500.0,0.00020273,3]
[348084102,1736298646063,-1911.48,0.00020273,3]
[348084105,1736298646077,-365.8,0.00020273,3]
[348084107,1736298646091,-500.0,0.00020273,3]
[348084110,1736298646104,-191.26623358,0.00020313,2]
[348084112,1736298646116,-176.51714694,0.00020313,2]
[348084114,1736298646129,-500.0,0.00020313,2]
[348084117,1736298646144,-160.39732276,0.00020313,2]
[348084119,1736298646157,-12060.56985254,0.00020314,2]
[348084122,1736298646168,-150.0,0.000204,2]
[348084124,1736298646178,-465.0,0.000204,2]
[348084126,1736298646191,-12060.56985254,0.00020417,2]
[348084129,1736298646203,-500.0,0.00020491,3]
[348084132,1736298646217,-500.0,0.00020491,3]
[348084135,1736298646230,-500.0,0.00020491,3]
[348084137,1736298646242,-500.0,0.00020491,3]
[348084139,1736298646256,-500.0,0.00020491,3]
[348084142,1736298646272,-500.0,0.00020491,3]
[348084144,1736298646288,-500.0,0.00020491,3]
[348084146,1736298646298,-771.51,0.00020492,3]
[348084148,1736298646308,-500.0,0.00020492,3]
[348084151,1736298646320,-500.0,0.00020492,3]
[348084153,1736298646333,-500.0,0.00020494,3]
[348084155,1736298646347,-2000.0,0.000205,4]
[348084158,1736298646359,-187.5871744,0.00020521,2]
[348084160,1736298646369,-12060.56985254,0.00020521,2]
[348084162,1736298646380,-267.81065478,0.00020547,3]
[348084164,1736298646393,-500.0,0.00020547,3]
[348084166,1736298646405,-364.27,0.00020547,3]
[348084169,1736298646416,-500.0,0.00020547,3]
[348084171,1736298646426,-500.0,0.00020547,3]
[348084173,1736298646438,-500.0,0.00020547,3]
[348084175,1736298646450,-500.0,0.00020547,3]
[348084177,1736298646461,-1959.3,0.00020547,3]
[348084180,1736298646473,-500.0,0.00020547,3]
[348084182,1736298646484,-500.0,0.00020547,3]
[348084184,1736298646496,-500.0,0.00020547,3]
[348084186,1736298646507,-500.0,0.00020547,3]
[348084188,1736298646518,-500.0,0.00020547,3]
[348084191,1736298646530,-500.0,0.00020547,3]
[348084193,1736298646541,-500.0,0.00020547,3]
[348084195,1736298646552,-500.0,0.00020547,3]
[348084197,1736298646564,-500.0,0.00020547,3]
[348084199,1736298646576,-500.0,0.00020547,3]
[348084201,1736298646587,-500.0,0.00020547,3]
[348084204,1736298646600,-500.0,0.00020547,3]
[348084206,1736298646612,-530.94334533,0.00020547,3]
[348084208,1736298646623,-500.0,0.00020547,3]
[348084211,1736298646636,-179.75,0.00020547,3]
[348084213,1736298646648,-325.51959698,0.00020547,3]
[348084215,1736298646660,-500.0,0.00020547,3]
[348084217,1736298646669,-500.0,0.00020547,3]
[348084219,1736298646679,-500.0,0.00020547,3]
[348084221,1736298646688,-4993.25,0.00020547,3]
[348084223,1736298646698,-500.0,0.00020547,3]
[348084225,1736298646707,-500.0,0.00020547,9]
[348084227,1736298646717,-500.0,0.00020547,3]
[348084229,1736298646726,-500.0,0.00020547,3]
[348084231,1736298646735,-498.62,0.00020547,3]
[348084233,1736298646744,-500.0,0.00020547,3]
[348084235,1736298646755,-500.0,0.00020547,3]
[348084237,1736298646765,-500.0,0.00020547,3]
[348084239,1736298646784,-500.0,0.00020547,3]
[348084241,1736298646794,-500.0,0.00020547,3]
[348084243,1736298646803,-500.0,0.00020547,3]
[348084245,1736298646812,-500.0,0.00020547,3]
[348084247,1736298646823,-500.0,0.00020547,3]
[348084249,1736298646832,-500.0,0.00020547,3]
[348084251,1736298646842,-1911.48,0.00020547,3]
[348084253,1736298646851,-500.0,0.00020547,3]
[348084255,1736298646861,-650.407555,0.00020548,2]
[348084257,1736298646871,-8685.74,0.000206,2]
[348084259,1736298646880,-7508.61,0.000206,2]
[348084261,1736298646890,-2833.63,0.000206,2]
[348084277,1736298646898,-12060.56985254,0.00020624,2]
[348084279,1736298647053,-12060.56985254,0.00020728,2]
[348084281,1736298647063,-500.0,0.00020765,3]
[348084283,1736298647073,-500.0,0.00020765,3]
[348084285,1736298647084,-500.0,0.00020765,3]
[348084287,1736298647094,-500.0,0.00020765,3]
[348084289,1736298647104,-500.0,0.00020765,3]
[348084291,1736298647114,-500.0,0.00020765,3]
[348084293,1736298647123,-290.3792454,0.00020765,3]
[348084295,1736298647132,-771.51,0.00020766,3]
[348084297,1736298647141,-500.0,0.00020766,3]
[348084299,1736298647150,-500.0,0.00020766,3]
[348084301,1736298647161,-500.0,0.00020768,3]
[348084303,1736298647170,-162.762063,0.00020807,2]
[348084304,1736298647180,-500.0,0.00020821,3]
[348084306,1736298647190,-500.0,0.00020821,3]
[348084308,1736298647199,-500.0,0.00020821,3]
[348084310,1736298647209,-500.0,0.00020821,3]
[348084312,1736298647218,-500.0,0.00020821,3]
[348084314,1736298647227,-1959.3,0.00020821,3]
[348084316,1736298647237,-500.0,0.00020821,3]
[348084318,1736298647246,-500.0,0.00020821,3]
[348084320,1736298647256,-500.0,0.00020821,3]
[348084322,1736298647267,-636.09639671,0.00020821,3]
[348084324,1736298647277,-500.0,0.00020821,3]
[348084326,1736298647287,-622.22454297,0.00020821,3]
[348084328,1736298647299,-500.0,0.00020821,3]
[348084330,1736298647308,-229.83896167,0.00020821,3]
[348084332,1736298647318,-423.70473648,0.00020821,3]
[348084334,1736298647328,-500.0,0.00020821,3]
[348084336,1736298647337,-500.0,0.00020821,3]
[348084338,1736298647347,-500.0,0.00020821,3]
[348084341,1736298647359,-500.0,0.00020821,3]
[348084343,1736298647368,-500.0,0.00020821,3]
[348084345,1736298647377,-500.0,0.00020821,3]
[348084347,1736298647387,-500.0,0.00020821,3]
[348084348,1736298647397,-4993.25,0.00020821,3]
[348084351,1736298647406,-500.0,0.00020821,3]
[348084352,1736298647417,-500.0,0.00020821,3]
[348084354,1736298647428,-500.0,0.00020821,3]
[348084356,1736298647438,-500.0,0.00020821,3]
[348084358,1736298647447,-500.0,0.00020821,3]
[348084360,1736298647457,-500.0,0.00020821,3]
[348084362,1736298647466,-500.0,0.00020821,3]
[348084364,1736298647475,-500.0,0.00020821,3]
[348084366,1736298647485,-500.0,0.00020821,3]
[348084368,1736298647494,-500.0,0.00020821,3]
[348084370,1736298647503,-500.0,0.00020821,3]
[348084372,1736298647512,-500.0,0.00020821,3]
[348084374,1736298647521,-1911.48,0.00020821,3]
[348084376,1736298647536,-500.0,0.00020821,3]
[348084378,1736298647545,-14450.1979535,0.00020831,3]
[348084380,1736298647557,-2692.12718227,0.00020831,3]
[348084382,1736298647566,-12060.56985254,0.00020831,2]
[348084384,1736298647576,-420.0,0.00020899,2]
[348084386,1736298647586,-12060.56985254,0.00020934,2]
[348084388,1736298647596,-5707.29558905,0.00021,2]
[348084390,1736298647605,-2000.0,0.00021,4]
[348084392,1736298647615,-12060.56985254,0.00021038,2]
[348084394,1736298647624,-500.0,0.00021039,3]
[348084396,1736298647633,-500.0,0.00021039,3]
[348084398,1736298647642,-500.0,0.00021039,3]
[348084400,1736298647652,-500.0,0.00021039,3]
[348084402,1736298647661,-500.0,0.00021039,3]
[348084404,1736298647671,-500.0,0.00021039,3]
[348084406,1736298647679,-771.51,0.0002104,3]
[348084408,1736298647689,-500.0,0.0002104,3]
[348084410,1736298647698,-500.0,0.00021042,3]
[348084412,1736298647707,-585.5,0.00021095,3]
[348084414,1736298647716,-500.0,0.00021095,3]
[348084416,1736298647726,-500.0,0.00021095,3]
[348084418,1736298647735,-500.0,0.00021095,3]
[348084420,1736298647745,-500.0,0.00021095,3]
[348084422,1736298647754,-1959.3,0.00021095,3]
[348084424,1736298647764,-500.0,0.00021095,3]
[348084426,1736298647774,-621.82,0.00021095,3]
[348084428,1736298647787,-500.0,0.00021095,3]
[348084430,1736298647796,-500.0,0.00021095,3]
[348084432,1736298647805,-500.0,0.00021095,3]
[348084434,1736298647814,-500.0,0.00021095,3]
[348084436,1736298647823,-500.0,0.00021095,3]
[348084438,1736298647832,-500.0,0.00021095,3]
[348084440,1736298647842,-500.0,0.00021095,3]
[348084441,1736298647851,-500.0,0.00021095,3]
[348084443,1736298647860,-500.0,0.00021095,3]
[348084446,1736298647870,-4993.25,0.00021095,3]
[348084448,1736298647880,-500.0,0.00021095,3]
[348084450,1736298647889,-500.0,0.00021095,3]
[348084452,1736298647899,-500.0,0.00021095,3]
[348084454,1736298647909,-500.0,0.00021095,3]
[348084456,1736298647918,-500.0,0.00021095,3]
[348084457,1736298647927,-500.0,0.00021095,3]
[348084459,1736298647937,-630.84,0.00021095,3]
[348084461,1736298647946,-500.0,0.00021095,3]
[348084464,1736298647955,-582.09236299,0.00021095,3]
[348084466,1736298647965,-500.0,0.00021095,3]
[348084467,1736298647975,-1911.48,0.00021095,3]
[348084469,1736298647984,-500.0,0.00021095,3]
[348084471,1736298647993,-171.63860476,0.00021125,2]
[348084473,1736298648002,-12060.56985254,0.00021141,2]
[348084475,1736298648011,-486.95366632,0.00021232,11]
[348084477,1736298648021,-12060.56985254,0.00021245,2]
[348084479,1736298648032,-500.0,0.00021313,3]
[348084481,1736298648042,-500.0,0.00021313,3]
[348084483,1736298648050,-587.71129974,0.00021313,3]
[348084485,1736298648060,-500.0,0.00021313,3]
[348084487,1736298648069,-500.0,0.00021313,3]
[348084489,1736298648078,-500.0,0.00021313,3]
[348084491,1736298648088,-771.51,0.00021314,3]
[348084493,1736298648099,-500.0,0.00021314,3]
[348084495,1736298648108,-500.0,0.00021316,3]
[348084497,1736298648117,-12060.56985254,0.00021348,2]
[348084499,1736298648127,-500.0,0.00021369,3]
[348084501,1736298648137,-500.0,0.00021369,3]
[348084503,1736298648146,-500.0,0.00021369,3]
[348084505,1736298648155,-500.0,0.00021369,3]
[348084506,1736298648165,-1959.3,0.00021369,3]
[348084507,1736298648174,-500.0,0.00021369,3]
[348084508,1736298648183,-505.38369114,0.00021369,3]
[348084509,1736298648192,-500.0,0.00021369,3]
[348084510,1736298648201,-500.0,0.00021369,3]
[348084511,1736298648210,-500.0,0.00021369,3]
[348084512,1736298648219,-500.0,0.00021369,3]
[348084513,1736298648228,-500.0,0.00021369,3]
[348084514,1736298648237,-500.0,0.00021369,3]
[348084515,1736298648247,-500.0,0.00021369,3]
[348084516,1736298648256,-4993.25,0.00021369,3]
[348084517,1736298648266,-500.0,0.00021369,3]
[348084518,1736298648277,-500.0,0.00021369,3]
[348084519,1736298648286,-500.0,0.00021369,3]
[348084520,1736298648295,-500.0,0.00021369,3]
[348084521,1736298648304,-500.0,0.00021369,3]
[348084522,1736298648313,-500.0,0.00021369,3]
[348084523,1736298648322,-549.31,0.00021369,3]
[348084524,1736298648331,-1911.48,0.00021369,3]
[348084525,1736298648340,-300.0,0.000214,9]
[348084527,1736298648350,-160.0,0.00021416,2]
[348084529,1736298648359,-12060.56985254,0.00021452,2]
[348084531,1736298648368,-276.021,0.00021484,2]
[348084533,1736298648378,-250.0,0.00021484,2]
[348084535,1736298648387,-150.0,0.00021484,2]
[348084537,1736298648396,-535.0,0.00021484,2]
[348084539,1736298648405,-2081.0,0.00021484,2]
[348084541,1736298648414,-2319.0,0.00021484,2]
[348084543,1736298648424,-150.0,0.000215,2]
[348084545,1736298648433,-2000.0,0.000215,4]
[348084547,1736298648443,-158.0,0.00021547,2]
[348084549,1736298648452,-158.0,0.00021547,2]
[348084551,1736298648462,-160.68,0.00021547,2]
[348084553,1736298648471,-160.0,0.00021554,2]
[348084555,1736298648480,-12060.56985254,0.00021555,2]
[348084557,1736298648489,-500.0,0.00021587,3]
[348084559,1736298648499,-500.0,0.00021587,3]
[348084561,1736298648508,-500.0,0.00021587,3]
[348084563,1736298648517,-500.0,0.00021587,3]
[348084565,1736298648527,-500.0,0.00021587,3]
[348084567,1736298648536,-771.51,0.00021588,3]
[348084569,1736298648545,-500.0,0.00021588,3]
[348084571,1736298648553,-500.0,0.0002159,3]
[348084573,1736298648562,-6369.0,0.000216,4]
[348084575,1736298648571,-500.0,0.00021643,3]
[348084577,1736298648580,-500.0,0.00021643,3]
[348084579,1736298648590,-500.0,0.00021643,3]
[348084581,1736298648599,-500.0,0.00021643,3]
[348084583,1736298648608,-1959.3,0.00021643,3]
[348084585,1736298648619,-500.0,0.00021643,3]
[348084587,1736298648628,-1293.11452611,0.00021643,2]
[348084589,1736298648637,-500.0,0.00021643,3]
[348084591,1736298648646,-500.0,0.00021643,3]
[348084593,1736298648655,-500.0,0.00021643,3]
[348084594,1736298648664,-500.0,0.00021643,3]
[348084597,1736298648674,-4993.25,0.00021643,3]
[348084599,1736298648684,-533.11,0.00021643,3]
[348084601,1736298648693,-500.0,0.00021643,3]
[348084603,1736298648703,-500.0,0.00021643,3]
[348084605,1736298648712,-500.0,0.00021643,3]
[348084607,1736298648722,-500.0,0.00021643,3]
[348084609,1736298648731,-500.0,0.00021643,3]
[348084611,1736298648741,-1911.48,0.00021643,3]
[348084613,1736298648750,-12060.56985254,0.00021659,2]
[348084615,1736298648759,-12060.56985254,0.00021762,2]
[348084617,1736298648769,-151.0,0.000218,3]
[348084619,1736298648779,-500.0,0.00021861,3]
[348084621,1736298648789,-500.0,0.00021861,3]
[348084623,1736298648798,-500.0,0.00021861,3]
[348084625,1736298648808,-484.55651453,0.00021861,3]
[348084627,1736298648817,-620.33458456,0.00021861,3]
[348084629,1736298648826,-771.51,0.00021862,3]
[348084630,1736298648835,-500.0,0.00021862,3]
[348084632,1736298648844,-500.0,0.00021864,3]
[348084635,1736298648854,-12060.56985254,0.00021866,2]
[348084637,1736298648863,-2833.63,0.000219,2]
[348084639,1736298648873,-500.0,0.00021917,3]
[348084641,1736298648882,-500.0,0.00021917,2]
[348084643,1736298648892,-500.0,0.00021917,2]
[348084645,1736298648901,-500.0,0.00021917,2]
[348084647,1736298648911,-500.0,0.00021917,2]
[348084648,1736298648921,-500.0,0.00021917,2]
[348084651,1736298648930,-500.0,0.00021917,2]
[348084653,1736298648940,-500.0,0.00021917,3]
[348084655,1736298648949,-500.0,0.00021917,2]
[348084657,1736298648958,-500.0,0.00021917,2]
[348084659,1736298648968,-500.0,0.00021917,2]
[348084661,1736298648977,-500.0,0.00021917,2]
[348084663,1736298648986,-500.0,0.00021917,3]
[348084665,1736298648996,-500.0,0.00021917,3]
[348084667,1736298649005,-1959.3,0.00021917,3]
[348084669,1736298649014,-355.26,0.00021917,3]
[348084671,1736298649023,-500.0,0.00021917,3]
[348084673,1736298649033,-500.0,0.00021917,3]
[348084675,1736298649042,-500.0,0.00021917,3]
[348084677,1736298649051,-500.0,0.00021917,3]
[348084679,1736298649061,-4993.25,0.00021917,3]
[348084681,1736298649070,-500.0,0.00021917,3]
[348084682,1736298649080,-500.0,0.00021917,3]
[348084684,1736298649090,-368.94,0.00021917,3]
[348084686,1736298649101,-500.0,0.00021917,3]
[348084688,1736298649110,-533.13,0.00021917,3]
[348084690,1736298649119,-1911.48,0.00021917,3]
[348084691,1736298649129,-12060.56985254,0.00021969,2]
[348084693,1736298649138,-500.0,0.00021973,2]
[348084695,1736298649148,-500.0,0.00021973,2]
[348084697,1736298649158,-500.0,0.00021973,2]
[348084699,1736298649167,-2000.0,0.00022,4]
[348084701,1736298649176,-8685.74,0.00022,14]
[348084702,1736298649186,-7508.61,0.00022,2]
[348084704,1736298649196,-29948.70707425,0.00022,2]
[348084705,1736298649205,-150.0,0.00022,2]
[348084707,1736298649214,-317.0,0.00022,2]
[348084709,1736298649224,-171.63860476,0.00022011,2]
[348084711,1736298649233,-12060.56985254,0.00022072,2]
[348084713,1736298649242,-500.0,0.00022135,3]
[348084715,1736298649251,-500.0,0.00022135,3]
[348084716,1736298649261,-500.0,0.00022135,3]
[348084718,1736298649271,-771.51,0.00022136,3]
[348084720,1736298649281,-500.0,0.00022136,3]
[348084722,1736298649291,-500.0,0.00022136,3]
[348084724,1736298649300,-500.0,0.00022138,3]
[348084725,1736298649310,-12060.56985254,0.00022176,2]
[348084726,1736298649320,-500.0,0.00022191,3]
[348084728,1736298649407,-500.0,0.00022191,3]
[348084729,1736298649419,-500.0,0.00022191,2]
[348084730,1736298649429,-500.0,0.00022191,3]
[348084731,1736298649438,-253.31542426,0.00022191,3]
[348084732,1736298649448,-1959.3,0.00022191,3]
[348084733,1736298649457,-500.0,0.00022191,3]
[348084734,1736298649466,-371.27,0.00022191,3]
[348084735,1736298649476,-500.0,0.00022191,3]
[348084736,1736298649485,-500.0,0.00022191,3]
[348084737,1736298649495,-4993.25,0.00022191,3]
[348084738,1736298649504,-500.0,0.00022191,3]
[348084739,1736298649514,-500.0,0.00022191,3]
[348084740,1736298649523,-500.0,0.00022191,3]
[348084741,1736298649538,-1911.48,0.00022191,3]
[348084742,1736298649547,-317.0,0.00022192,2]
[348084743,1736298649556,-151.0,0.000222,5]
[348084744,1736298649565,-12060.56985254,0.00022279,2]
[348084745,1736298649575,-12060.56985254,0.00022383,2]
[348084746,1736298649584,-500.0,0.00022409,3]
[348084747,1736298649593,-175.9,0.00022409,3]
[348084748,1736298649602,-500.0,0.00022409,3]
[348084749,1736298649612,-771.51,0.0002241,3]
[348084750,1736298649621,-500.0,0.0002241,3]
[348084751,1736298649630,-500.0,0.0002241,3]
[348084752,1736298649639,-500.0,0.00022412,3]
[348084753,1736298649649,-171.17,0.00022465,3]
[348084754,1736298649659,-500.0,0.00022465,3]
[348084755,1736298649668,-500.0,0.00022465,2]
[348084756,1736298649677,-500.0,0.00022465,3]
[348084757,1736298649685,-1959.3,0.00022465,3]
[348084758,1736298649694,-500.0,0.00022465,3]
[348084759,1736298649703,-500.0,0.00022465,3]